[Event "Titled Tuesday Blitz May 10 Late 2022"]
[White "Romero Ruscalleda, Josep"]
[Black "Remolar Gallen, Jose"]
[WhiteFideId "2231859"]
[BlackFideId "2215187"]
[WhiteElo "2315"]
[BlackElo "2205"]
[Result "0-1"]
[Round "11"]
[TimeControl "180+1"]
[Date "2022.05.11"]
[WhiteClock "0:00:02"]
[BlackClock "0:00:05"]

1. e4 {[%clk 0:03:00]}  c5 {[%clk 0:02:59]} 2. c3 {[%clk 0:03:00]}  g6 {[%clk 0:02:59]} 3. d4 {[%clk 0:03:00]}  cxd4 {[%clk 0:02:59]} 4. cxd4 {[%clk 0:03:00]}  d5 {[%clk 0:03:00]} 5. Nc3 {[%clk 0:03:00]}  dxe4 {[%clk 0:02:59]} 6. Bc4 {[%clk 0:02:59]}  Nc6 {[%clk 0:02:59]} 7. Qb3 {[%clk 0:02:56]}  e6 {[%clk 0:02:58]} 8. d5 {[%clk 0:02:55]}  Nd4 {[%clk 0:02:20]} 9. Qd1 {[%clk 0:02:39]}  Bg7 {[%clk 0:02:17]} 10. Be3 {[%clk 0:02:33]}  e5 {[%clk 0:02:02]} 11. Nxe4 {[%clk 0:02:16]}  Bf5 {[%clk 0:01:59]} 12. Qa4+ {[%clk 0:01:58]}  Kf8 {[%clk 0:01:50]} 13. Bxd4 {[%clk 0:01:29]}  exd4 {[%clk 0:01:48]} 14. Ng3 {[%clk 0:01:06]}  Ne7 {[%clk 0:01:34]} 15. Nxf5 {[%clk 0:01:00]}  Nxf5 {[%clk 0:01:34]} 16. Ne2 {[%clk 0:00:56]}  h5 {[%clk 0:01:13]} 17. O-O {[%clk 0:00:54]}  Kg8 {[%clk 0:01:12]} 18. Rfd1 {[%clk 0:00:47]}  Kh7 {[%clk 0:01:07]} 19. Qb3 {[%clk 0:00:36]}  Rb8 {[%clk 0:00:31]} 20. Bd3 {[%clk 0:00:35]}  Re8 {[%clk 0:00:25]} 21. Rac1 {[%clk 0:00:30]}  Qg5 {[%clk 0:00:19]} 22. Bxf5 {[%clk 0:00:19]}  Rxe2 {[%clk 0:00:18]} 23. Bd3 {[%clk 0:00:16]}  Re5 {[%clk 0:00:14]} 24. Bc4 {[%clk 0:00:14]}  Rbe8 {[%clk 0:00:13]} 25. h3 {[%clk 0:00:13]}  Bh6 {[%clk 0:00:11]} 26. Rb1 {[%clk 0:00:11]}  Qf4 {[%clk 0:00:08]} 27. Qxb7 {[%clk 0:00:09]}  R8e7 {[%clk 0:00:09]} 28. Qb3 {[%clk 0:00:09]}  Rg5 {[%clk 0:00:08]} 29. Bf1 {[%clk 0:00:07]}  Re3 {[%clk 0:00:07]} 30. fxe3 {[%clk 0:00:06]}  dxe3 {[%clk 0:00:08]} 31. Qd3 {[%clk 0:00:06]}  Qf2+ {[%clk 0:00:08]} 32. Kh1 {[%clk 0:00:06]}  Rg3 {[%clk 0:00:06]} 33. Qe2 {[%clk 0:00:06]}  Qf4 {[%clk 0:00:05]} 34. Rd3 {[%clk 0:00:04]}  Qd6 {[%clk 0:00:05]} 35. Rbd1 {[%clk 0:00:02]}  Bf4 {[%clk 0:00:05]} 0-1


[Site "https://www.chess.com"]

[Event "Titled Tuesday Blitz May 10 Late 2022"]
[White "Rustemov, Alexander"]
[Black "Peralta, Eduardo"]
[WhiteFideId "4119002"]
[BlackFideId "3700062"]
[WhiteElo "2757"]
[BlackElo "2125"]
[Result "1-0"]
[Round "11"]
[TimeControl "180+1"]
[Date "2022.05.10"]
[WhiteClock "0:00:18"]
[BlackClock "0:00:18"]

1. d4 {[%clk 0:03:00]}  Nf6 {[%clk 0:02:58]} 2. c4 {[%clk 0:03:00]}  c5 {[%clk 0:02:56]} 3. Nf3 {[%clk 0:02:59]}  cxd4 {[%clk 0:02:55]} 4. Nxd4 {[%clk 0:02:59]}  g6 {[%clk 0:02:55]} 5. g3 {[%clk 0:02:55]}  Bg7 {[%clk 0:02:55]} 6. Bg2 {[%clk 0:02:56]}  O-O {[%clk 0:02:56]} 7. O-O {[%clk 0:02:54]}  Nc6 {[%clk 0:02:56]} 8. Nc3 {[%clk 0:02:53]}  Ng4 {[%clk 0:02:54]} 9. e3 {[%clk 0:02:52]}  d6 {[%clk 0:02:53]} 10. b3 {[%clk 0:02:52]}  Bd7 {[%clk 0:02:44]} 11. Bb2 {[%clk 0:02:46]}  Nxd4 {[%clk 0:02:39]} 12. exd4 {[%clk 0:02:46]}  Rb8 {[%clk 0:02:33]} 13. Qd2 {[%clk 0:02:42]}  h5 {[%clk 0:02:30]} 14. Rfe1 {[%clk 0:02:35]}  h4 {[%clk 0:02:27]} 15. h3 {[%clk 0:02:23]}  Bh6 {[%clk 0:02:05]} 16. Qe2 {[%clk 0:02:17]}  Nf6 {[%clk 0:02:04]} 17. Qxe7 {[%clk 0:01:41]}  hxg3 {[%clk 0:02:03]} 18. fxg3 {[%clk 0:01:40]}  Be6 {[%clk 0:01:45]} 19. Qxd8 {[%clk 0:01:35]}  Rfxd8 {[%clk 0:01:46]} 20. Rad1 {[%clk 0:01:35]}  d5 {[%clk 0:01:40]} 21. c5 {[%clk 0:01:28]}  b6 {[%clk 0:01:40]} 22. Bc1 {[%clk 0:01:21]}  Bxc1 {[%clk 0:01:30]} 23. Rxc1 {[%clk 0:01:22]}  bxc5 {[%clk 0:01:29]} 24. dxc5 {[%clk 0:01:20]}  d4 {[%clk 0:01:30]} 25. c6 {[%clk 0:01:09]}  Rbc8 {[%clk 0:01:26]} 26. Nb5 {[%clk 0:01:05]}  d3 {[%clk 0:01:19]} 27. Red1 {[%clk 0:01:02]}  a6 {[%clk 0:01:04]} 28. c7 {[%clk 0:01:00]}  axb5 {[%clk 0:00:59]} 29. cxd8=Q+ {[%clk 0:00:59]}  Rxd8 {[%clk 0:01:00]} 30. Rc3 {[%clk 0:00:57]}  d2 {[%clk 0:00:25]} 31. Rc2 {[%clk 0:00:56]}  Nh5 {[%clk 0:00:26]} 32. Kf2 {[%clk 0:00:48]}  Rd6 {[%clk 0:00:21]} 33. Rcxd2 {[%clk 0:00:47]}  Ra6 {[%clk 0:00:21]} 34. Rd8+ {[%clk 0:00:42]}  Kg7 {[%clk 0:00:21]} 35. Ra8 {[%clk 0:00:43]}  Rb6 {[%clk 0:00:21]} 36. Rd4 {[%clk 0:00:40]}  Nf6 {[%clk 0:00:19]} 37. g4 {[%clk 0:00:37]}  Nd7 {[%clk 0:00:18]} 38. Bf3 {[%clk 0:00:30]}  Ne5 {[%clk 0:00:17]} 39. Be2 {[%clk 0:00:29]}  Nc6 {[%clk 0:00:16]} 40. Rd6 {[%clk 0:00:28]}  Kf6 {[%clk 0:00:14]} 41. Bf3 {[%clk 0:00:28]}  Rb8 {[%clk 0:00:11]} 42. Rxc6 {[%clk 0:00:25]}  Rxa8 {[%clk 0:00:08]} 43. Rxe6+ {[%clk 0:00:25]}  Kxe6 {[%clk 0:00:07]} 44. Bxa8 {[%clk 0:00:26]}  b4 {[%clk 0:00:08]} 45. h4 {[%clk 0:00:23]}  f6 {[%clk 0:00:06]} 46. Kg3 {[%clk 0:00:23]}  Ke5 {[%clk 0:00:07]} 47. h5 {[%clk 0:00:21]}  gxh5 {[%clk 0:00:08]} 48. gxh5 {[%clk 0:00:21]}  f5 {[%clk 0:00:08]} 49. Bf3 {[%clk 0:00:19]}  Kf6 {[%clk 0:00:09]} 50. Kf4 {[%clk 0:00:19]}  Ke6 {[%clk 0:00:09]} 51. Kg5 {[%clk 0:00:19]}  Kf7 {[%clk 0:00:09]} 52. Kxf5 {[%clk 0:00:19]}  Kg7 {[%clk 0:00:10]} 53. Ke4 {[%clk 0:00:20]}  Kh6 {[%clk 0:00:11]} 54. Kd4 {[%clk 0:00:20]}  Kg5 {[%clk 0:00:11]} 55. Kc4 {[%clk 0:00:21]}  Kf4 {[%clk 0:00:12]} 56. Bd1 {[%clk 0:00:21]}  Ke3 {[%clk 0:00:13]} 57. Kxb4 {[%clk 0:00:21]}  Kd2 {[%clk 0:00:14]} 58. Bg4 {[%clk 0:00:21]}  Kc1 {[%clk 0:00:14]} 59. h6 {[%clk 0:00:22]}  Kb2 {[%clk 0:00:15]} 60. h7 {[%clk 0:00:22]}  Ka1 {[%clk 0:00:16]} 61. h8=Q+ {[%clk 0:00:21]}  Kb1 {[%clk 0:00:17]} 62. Bf5+ {[%clk 0:00:21]}  Kc1 {[%clk 0:00:17]} 63. Qc3+ {[%clk 0:00:20]}  Kd1 {[%clk 0:00:17]} 64. Qc2+ {[%clk 0:00:20]}  Ke1 {[%clk 0:00:17]} 65. Kc3 {[%clk 0:00:18]}  Kf1 {[%clk 0:00:17]} 66. Kd3 {[%clk 0:00:18]}  Kg1 {[%clk 0:00:17]} 67. Ke3 {[%clk 0:00:18]}  Kh1 {[%clk 0:00:18]} 68. Kf3 {[%clk 0:00:18]} 1-0


[Site "https://www.chess.com"]

[Event "Titled Tuesday Blitz May 10 Late 2022"]
[White "Sargsyan, Anna M."]
[Black "Dimakiling, Oliver"]
[WhiteFideId "13308130"]
[BlackFideId "5202248"]
[WhiteElo "2271"]
[BlackElo "2426"]
[Result "0-1"]
[Round "11"]
[TimeControl "180+1"]
[Date "2022.05.10"]
[WhiteClock "0:00:03"]
[BlackClock "0:01:20"]

1. d4 {[%clk 0:03:00]}  Nf6 {[%clk 0:02:59]} 2. c4 {[%clk 0:02:57]}  d6 {[%clk 0:02:59]} 3. g3 {[%clk 0:02:56]}  Bf5 {[%clk 0:02:59]} 4. Bg2 {[%clk 0:02:55]}  c6 {[%clk 0:02:59]} 5. Nc3 {[%clk 0:02:54]}  e5 {[%clk 0:02:58]} 6. e4 {[%clk 0:02:51]}  Bg6 {[%clk 0:02:57]} 7. Nge2 {[%clk 0:02:50]}  Be7 {[%clk 0:02:57]} 8. O-O {[%clk 0:02:50]}  O-O {[%clk 0:02:56]} 9. f4 {[%clk 0:02:51]}  exf4 {[%clk 0:02:56]} 10. gxf4 {[%clk 0:02:46]}  Bh5 {[%clk 0:02:49]} 11. Qe1 {[%clk 0:02:42]}  Re8 {[%clk 0:02:38]} 12. Ng3 {[%clk 0:02:42]}  Bf8 {[%clk 0:02:38]} 13. Be3 {[%clk 0:02:30]}  Bg4 {[%clk 0:02:33]} 14. f5 {[%clk 0:02:25]}  Nh5 {[%clk 0:02:28]} 15. h3 {[%clk 0:02:18]}  Nxg3 {[%clk 0:02:27]} 16. Qxg3 {[%clk 0:02:19]}  Bh5 {[%clk 0:02:27]} 17. Rae1 {[%clk 0:02:11]}  f6 {[%clk 0:02:26]} 18. Kh1 {[%clk 0:02:09]}  Nd7 {[%clk 0:02:25]} 19. Bf4 {[%clk 0:02:08]}  Qe7 {[%clk 0:02:21]} 20. Rg1 {[%clk 0:01:54]}  a5 {[%clk 0:02:20]} 21. Qh4 {[%clk 0:01:42]}  Bf7 {[%clk 0:02:17]} 22. Bf3 {[%clk 0:01:39]}  Bxc4 {[%clk 0:02:12]} 23. Rg2 {[%clk 0:01:32]}  d5 {[%clk 0:02:08]} 24. b3 {[%clk 0:01:15]}  dxe4 {[%clk 0:02:06]} 25. Rxe4 {[%clk 0:01:13]}  Qf7 {[%clk 0:01:59]} 26. bxc4 {[%clk 0:01:05]}  Qxc4 {[%clk 0:01:58]} 27. Qe1 {[%clk 0:00:37]}  Rxe4 {[%clk 0:01:54]} 28. Nxe4 {[%clk 0:00:38]}  Re8 {[%clk 0:01:50]} 29. Qd2 {[%clk 0:00:28]}  Qf1+ {[%clk 0:01:48]} 30. Kh2 {[%clk 0:00:24]}  Qxf3 {[%clk 0:01:48]} 31. Ng3 {[%clk 0:00:19]}  Nb6 {[%clk 0:01:40]} 32. Rf2 {[%clk 0:00:15]}  Qd5 {[%clk 0:01:37]} 33. Bc7 {[%clk 0:00:14]}  Nc4 {[%clk 0:01:36]} 34. Qd1 {[%clk 0:00:08]}  Ne3 {[%clk 0:01:34]} 35. Qd3 {[%clk 0:00:05]}  c5 {[%clk 0:01:29]} 36. Qb5 {[%clk 0:00:04]}  Qc6 {[%clk 0:01:23]} 37. Qxa5 {[%clk 0:00:03]}  cxd4 {[%clk 0:01:23]} 38. Bf4 {[%clk 0:00:03]}  Nd5 {[%clk 0:01:22]} 39. Nh5 {[%clk 0:00:03]}  Nxf4 {[%clk 0:01:21]} 40. Nxf4 {[%clk 0:00:03]}  Bd6 {[%clk 0:01:20]} 0-1


[Site "https://www.chess.com"]

[Event "Titled Tuesday Blitz May 10 Late 2022"]
[White "Souleidis, Georgios"]
[Black "Baches Garcia, Guillermo"]
[WhiteFideId "4206827"]
[BlackFideId "2209764"]
[WhiteElo "2401"]
[BlackElo "2507"]
[Result "1-0"]
[Round "11"]
[TimeControl "180+1"]
[Date "2022.05.11"]
[WhiteClock "0:00:56"]
[BlackClock "0:00:39"]

1. e4 {[%clk 0:02:59]}  c5 {[%clk 0:03:00]} 2. Be2 {[%clk 0:02:59]}  Nc6 {[%clk 0:02:57]} 3. d3 {[%clk 0:02:59]}  g6 {[%clk 0:02:57]} 4. f4 {[%clk 0:02:59]}  Bg7 {[%clk 0:02:57]} 5. Nf3 {[%clk 0:03:00]}  d6 {[%clk 0:02:57]} 6. O-O {[%clk 0:03:00]}  e5 {[%clk 0:02:57]} 7. fxe5 {[%clk 0:02:55]}  dxe5 {[%clk 0:02:53]} 8. c4 {[%clk 0:02:50]}  Nge7 {[%clk 0:02:47]} 9. Nc3 {[%clk 0:02:50]}  O-O {[%clk 0:02:47]} 10. Bg5 {[%clk 0:02:43]}  f6 {[%clk 0:02:44]} 11. Be3 {[%clk 0:02:42]}  Nd4 {[%clk 0:02:44]} 12. Rc1 {[%clk 0:02:32]}  Be6 {[%clk 0:02:36]} 13. Nd5 {[%clk 0:02:29]}  b6 {[%clk 0:02:32]} 14. Nxd4 {[%clk 0:02:17]}  cxd4 {[%clk 0:02:26]} 15. Bd2 {[%clk 0:02:17]}  Kh8 {[%clk 0:02:19]} 16. Bb4 {[%clk 0:02:15]}  Bxd5 {[%clk 0:01:56]} 17. cxd5 {[%clk 0:02:15]}  Qd7 {[%clk 0:01:56]} 18. Qb3 {[%clk 0:01:50]}  Rac8 {[%clk 0:01:54]} 19. Qa3 {[%clk 0:01:41]}  Rce8 {[%clk 0:01:23]} 20. Bd1 {[%clk 0:01:29]}  Rf7 {[%clk 0:01:12]} 21. Qa6 {[%clk 0:01:19]}  Rc8 {[%clk 0:00:53]} 22. Ba4 {[%clk 0:01:14]}  Qg4 {[%clk 0:00:48]} 23. Bxe7 {[%clk 0:01:02]}  Rxc1 {[%clk 0:00:45]} 24. Rxc1 {[%clk 0:01:02]}  Bh6 {[%clk 0:00:40]} 25. Qc8+ {[%clk 0:00:57]}  Kg7 {[%clk 0:00:39]} 26. Qxg4 {[%clk 0:00:56]} 1-0


[Site "https://www.chess.com"]

[Event "Titled Tuesday Blitz May 10 Late 2022"]
[White "Stanisz, Patryk"]
[Black "Butti, Enrique"]
[WhiteFideId "1123106"]
[BlackFideId "3700470"]
[WhiteElo "1833"]
[BlackElo "2080"]
[Result "1-0"]
[Round "11"]
[TimeControl "180+1"]
[Date "2022.05.11"]
[WhiteClock "0:01:05"]
[BlackClock "0:00:28"]

1. Nf3 {[%clk 0:03:00]}  c5 {[%clk 0:02:58]} 2. g3 {[%clk 0:02:58]}  Nc6 {[%clk 0:02:57]} 3. Bg2 {[%clk 0:02:58]}  d5 {[%clk 0:02:57]} 4. O-O {[%clk 0:02:58]}  Nf6 {[%clk 0:02:57]} 5. d3 {[%clk 0:02:57]}  e6 {[%clk 0:02:56]} 6. Nbd2 {[%clk 0:02:58]}  Be7 {[%clk 0:02:56]} 7. e4 {[%clk 0:02:57]}  O-O {[%clk 0:02:55]} 8. c3 {[%clk 0:02:53]}  b5 {[%clk 0:02:53]} 9. Qe2 {[%clk 0:02:51]}  a5 {[%clk 0:02:52]} 10. h4 {[%clk 0:02:51]}  Ba6 {[%clk 0:02:51]} 11. b3 {[%clk 0:02:44]}  c4 {[%clk 0:02:31]} 12. bxc4 {[%clk 0:02:40]}  bxc4 {[%clk 0:02:28]} 13. d4 {[%clk 0:02:40]}  a4 {[%clk 0:02:19]} 14. Re1 {[%clk 0:02:36]}  Re8 {[%clk 0:02:18]} 15. e5 {[%clk 0:02:17]}  Nd7 {[%clk 0:02:15]} 16. h5 {[%clk 0:02:16]}  Qa5 {[%clk 0:02:07]} 17. Qe3 {[%clk 0:02:12]}  a3 {[%clk 0:02:06]} 18. h6 {[%clk 0:02:09]}  g6 {[%clk 0:02:05]} 19. Nh2 {[%clk 0:02:04]}  Na7 {[%clk 0:01:55]} 20. Ndf1 {[%clk 0:02:01]}  Nb5 {[%clk 0:01:50]} 21. Bd2 {[%clk 0:02:01]}  Qa4 {[%clk 0:01:41]} 22. Rac1 {[%clk 0:01:59]}  Rab8 {[%clk 0:01:27]} 23. f4 {[%clk 0:01:33]}  Bf8 {[%clk 0:01:20]} 24. Ng4 {[%clk 0:01:29]}  Na7 {[%clk 0:01:01]} 25. Nfh2 {[%clk 0:01:27]}  Nc6 {[%clk 0:01:00]} 26. Nf3 {[%clk 0:01:27]}  Na5 {[%clk 0:00:59]} 27. Ng5 {[%clk 0:01:25]}  Nb3 {[%clk 0:00:56]} 28. Rcd1 {[%clk 0:01:22]}  Nxd2 {[%clk 0:00:53]} 29. Rxd2 {[%clk 0:01:23]}  Rb2 {[%clk 0:00:52]} 30. Bf3 {[%clk 0:01:23]}  Reb8 {[%clk 0:00:42]} 31. Bd1 {[%clk 0:01:10]}  Qa5 {[%clk 0:00:33]} 32. Ree2 {[%clk 0:01:08]}  Rb1 {[%clk 0:00:30]} 33. Kg2 {[%clk 0:01:07]}  Nb6 {[%clk 0:00:29]} 34. Nf6+ {[%clk 0:01:05]}  Kh8 {[%clk 0:00:28]} 35. Nxf7# {[%clk 0:01:05]} 1-0


[Site "https://www.chess.com"]

[Event "Titled Tuesday Blitz May 10 Late 2022"]
[White "Svane, Frederik"]
[Black "Dreev, Aleksey"]
[WhiteFideId "12923044"]
[BlackFideId "4100107"]
[WhiteElo "2459"]
[BlackElo "2625"]
[Result "1/2-1/2"]
[Round "11"]
[TimeControl "180+1"]
[Date "2022.05.10"]
[WhiteClock "0:00:04"]
[BlackClock "0:00:03"]

1. e4 {[%clk 0:03:00]}  c6 {[%clk 0:02:59]} 2. Nf3 {[%clk 0:03:01]}  d5 {[%clk 0:03:00]} 3. exd5 {[%clk 0:03:02]}  cxd5 {[%clk 0:02:59]} 4. d4 {[%clk 0:03:02]}  Nc6 {[%clk 0:02:59]} 5. c3 {[%clk 0:03:03]}  Nf6 {[%clk 0:02:45]} 6. Ne5 {[%clk 0:03:03]}  a6 {[%clk 0:02:44]} 7. Bd3 {[%clk 0:03:02]}  e6 {[%clk 0:02:43]} 8. O-O {[%clk 0:03:02]}  Bd6 {[%clk 0:02:40]} 9. f4 {[%clk 0:03:02]}  Ne7 {[%clk 0:02:38]} 10. Nd2 {[%clk 0:02:59]}  b6 {[%clk 0:02:34]} 11. Qe2 {[%clk 0:02:57]}  Bb7 {[%clk 0:02:33]} 12. a4 {[%clk 0:02:58]}  O-O {[%clk 0:02:32]} 13. Rf3 {[%clk 0:02:56]}  Nf5 {[%clk 0:02:26]} 14. Rh3 {[%clk 0:02:52]}  h5 {[%clk 0:02:18]} 15. Ndf3 {[%clk 0:02:27]}  g6 {[%clk 0:02:16]} 16. Ng5 {[%clk 0:02:26]}  Qe7 {[%clk 0:02:02]} 17. Bd2 {[%clk 0:02:25]}  Kg7 {[%clk 0:02:00]} 18. Kh1 {[%clk 0:02:25]}  b5 {[%clk 0:01:46]} 19. axb5 {[%clk 0:01:57]}  axb5 {[%clk 0:01:46]} 20. Rxa8 {[%clk 0:01:58]}  Bxa8 {[%clk 0:01:44]} 21. Bxb5 {[%clk 0:01:56]}  Ne4 {[%clk 0:01:41]} 22. Bd3 {[%clk 0:01:51]}  Bxe5 {[%clk 0:01:37]} 23. Bxe4 {[%clk 0:01:44]}  dxe4 {[%clk 0:01:12]} 24. fxe5 {[%clk 0:01:45]}  e3 {[%clk 0:01:01]} 25. Bxe3 {[%clk 0:01:43]}  Bc6 {[%clk 0:00:51]} 26. Bf4 {[%clk 0:01:21]}  Ra8 {[%clk 0:00:48]} 27. Rd3 {[%clk 0:01:17]}  Bb5 {[%clk 0:00:45]} 28. Qf3 {[%clk 0:01:16]}  Qb7 {[%clk 0:00:29]} 29. Rd1 {[%clk 0:01:04]}  Bc6 {[%clk 0:00:27]} 30. Qf2 {[%clk 0:01:04]}  Ra2 {[%clk 0:00:26]} 31. Bc1 {[%clk 0:01:03]}  Ra1 {[%clk 0:00:26]} 32. Rg1 {[%clk 0:01:03]}  h4 {[%clk 0:00:22]} 33. Nh3 {[%clk 0:01:00]}  Qb5 {[%clk 0:00:12]} 34. Bg5 {[%clk 0:00:57]}  Rxg1+ {[%clk 0:00:12]} 35. Nxg1 {[%clk 0:00:58]}  Qd3 {[%clk 0:00:09]} 36. Bf4 {[%clk 0:00:17]}  h3 {[%clk 0:00:09]} 37. Nxh3 {[%clk 0:00:15]}  Qxh3 {[%clk 0:00:09]} 38. Kg1 {[%clk 0:00:07]}  Qg4 {[%clk 0:00:08]} 39. h3 {[%clk 0:00:08]}  Qd1+ {[%clk 0:00:08]} 40. Kh2 {[%clk 0:00:08]}  Qd3 {[%clk 0:00:07]} 41. Bg5 {[%clk 0:00:09]}  Qe4 {[%clk 0:00:07]} 42. Bf4 {[%clk 0:00:08]}  Kg8 {[%clk 0:00:06]} 43. Bg5 {[%clk 0:00:07]}  Qd3 {[%clk 0:00:05]} 44. Bf4 {[%clk 0:00:06]}  Qe4 {[%clk 0:00:05]} 45. Bg5 {[%clk 0:00:06]}  Ng7 {[%clk 0:00:05]} 46. Bf6 {[%clk 0:00:05]}  Nh5 {[%clk 0:00:05]} 47. Bg5 {[%clk 0:00:05]}  Kg7 {[%clk 0:00:05]} 48. Be3 {[%clk 0:00:03]}  Kg8 {[%clk 0:00:03]} 49. Bg5 {[%clk 0:00:03]}  Ng7 {[%clk 0:00:03]} 50. Bf6 {[%clk 0:00:04]}  Nf5 {[%clk 0:00:03]} 51. Bg5 {[%clk 0:00:04]} 1/2-1/2


[Site "https://www.chess.com"]

[Event "Titled Tuesday Blitz May 10 Late 2022"]
[White "Tanenbaum, Zachary"]
[Black "Vusatiuk, Vladimir"]
[WhiteFideId "2060850"]
[BlackFideId "14118610"]
[WhiteElo "2674"]
[BlackElo "2525"]
[Result "0-1"]
[Round "11"]
[TimeControl "180+1"]
[Date "2022.05.11"]
[WhiteClock "0:00:01"]
[BlackClock "0:00:28"]

1. e4 {[%clk 0:02:59]}  c5 {[%clk 0:02:58]} 2. Nf3 {[%clk 0:02:59]}  d6 {[%clk 0:02:58]} 3. d4 {[%clk 0:02:59]}  cxd4 {[%clk 0:02:58]} 4. Nxd4 {[%clk 0:02:59]}  Nf6 {[%clk 0:02:59]} 5. Nc3 {[%clk 0:03:00]}  Nc6 {[%clk 0:03:00]} 6. Bg5 {[%clk 0:02:59]}  Bd7 {[%clk 0:03:00]} 7. Bxf6 {[%clk 0:02:59]}  gxf6 {[%clk 0:03:00]} 8. Qd2 {[%clk 0:02:58]}  Qa5 {[%clk 0:02:58]} 9. O-O-O {[%clk 0:02:54]}  Rc8 {[%clk 0:02:56]} 10. Kb1 {[%clk 0:02:32]}  Nxd4 {[%clk 0:02:51]} 11. Qxd4 {[%clk 0:02:32]}  Qc5 {[%clk 0:02:52]} 12. Qd2 {[%clk 0:02:31]}  h5 {[%clk 0:02:50]} 13. f4 {[%clk 0:02:27]}  Bh6 {[%clk 0:02:50]} 14. Bd3 {[%clk 0:02:10]}  b5 {[%clk 0:02:34]} 15. g3 {[%clk 0:02:07]}  b4 {[%clk 0:02:23]} 16. Nd5 {[%clk 0:02:06]}  f5 {[%clk 0:02:20]} 17. Rhe1 {[%clk 0:02:02]}  a5 {[%clk 0:02:16]} 18. Qe2 {[%clk 0:01:58]}  Kd8 {[%clk 0:01:20]} 19. Ba6 {[%clk 0:01:17]}  Ra8 {[%clk 0:01:08]} 20. exf5 {[%clk 0:01:13]}  Re8 {[%clk 0:01:03]} 21. Nxe7 {[%clk 0:00:15]}  Bg7 {[%clk 0:00:45]} 22. Bc4 {[%clk 0:00:07]}  Bf6 {[%clk 0:00:42]} 23. Qd3 {[%clk 0:00:03]}  Rxe7 {[%clk 0:00:38]} 24. Rxe7 {[%clk 0:00:04]}  Bxe7 {[%clk 0:00:39]} 25. Bxf7 {[%clk 0:00:04]}  Bxf5 {[%clk 0:00:38]} 26. Qe2 {[%clk 0:00:03]}  Rc8 {[%clk 0:00:37]} 27. Rd2 {[%clk 0:00:01]}  Qg1+ {[%clk 0:00:31]} 28. Rd1 {[%clk 0:00:02]}  Rxc2 {[%clk 0:00:32]} 29. Rxg1 {[%clk 0:00:01]}  Rxe2+ {[%clk 0:00:32]} 30. Ka1 {[%clk 0:00:01]}  Bf6 {[%clk 0:00:33]} 31. a4 {[%clk 0:00:01]}  Rxb2 {[%clk 0:00:28]} 0-1


[Site "https://www.chess.com"]

[Event "Titled Tuesday Blitz May 10 Late 2022"]
[White "Vega Gutierrez, Sabrina"]
[Black "Melikhov, Evgeny V."]
[WhiteFideId "2219026"]
[BlackFideId "4122046"]
[WhiteElo "2286"]
[BlackElo "1931"]
[Result "0-1"]
[Round "11"]
[TimeControl "180+1"]
[Date "2022.05.11"]
[WhiteClock "0:00:03"]
[BlackClock "0:00:13"]

1. e4 {[%clk 0:03:00]}  e5 {[%clk 0:02:59]} 2. Nf3 {[%clk 0:03:01]}  Nc6 {[%clk 0:02:59]} 3. Nc3 {[%clk 0:03:01]}  Nf6 {[%clk 0:02:58]} 4. g3 {[%clk 0:03:02]}  d5 {[%clk 0:02:56]} 5. exd5 {[%clk 0:03:02]}  Nxd5 {[%clk 0:02:56]} 6. Bg2 {[%clk 0:03:02]}  Nxc3 {[%clk 0:02:55]} 7. bxc3 {[%clk 0:03:03]}  Bd6 {[%clk 0:02:54]} 8. O-O {[%clk 0:03:03]}  O-O {[%clk 0:02:53]} 9. Re1 {[%clk 0:03:04]}  f5 {[%clk 0:02:47]} 10. d3 {[%clk 0:03:01]}  Rb8 {[%clk 0:02:41]} 11. a4 {[%clk 0:02:55]}  h6 {[%clk 0:02:31]} 12. Rb1 {[%clk 0:02:43]}  Bd7 {[%clk 0:02:25]} 13. c4 {[%clk 0:02:42]}  Qf6 {[%clk 0:02:14]} 14. Nd2 {[%clk 0:02:35]}  Nd4 {[%clk 0:02:00]} 15. c3 {[%clk 0:02:35]}  Ne6 {[%clk 0:01:54]} 16. Nb3 {[%clk 0:02:30]}  Bc6 {[%clk 0:01:51]} 17. Bxc6 {[%clk 0:02:28]}  bxc6 {[%clk 0:01:51]} 18. Bd2 {[%clk 0:02:24]}  f4 {[%clk 0:01:49]} 19. Qe2 {[%clk 0:01:41]}  f3 {[%clk 0:01:38]} 20. Qe4 {[%clk 0:01:40]}  Rxb3 {[%clk 0:01:34]} 21. Rxb3 {[%clk 0:01:32]}  Nc5 {[%clk 0:01:34]} 22. Qxc6 {[%clk 0:01:32]}  Nxb3 {[%clk 0:01:32]} 23. Be3 {[%clk 0:01:33]}  Qf5 {[%clk 0:01:24]} 24. Kh1 {[%clk 0:01:10]}  Qh3 {[%clk 0:01:23]} 25. Rg1 {[%clk 0:01:10]}  Rf5 {[%clk 0:01:22]} 26. Qd7 {[%clk 0:01:04]}  Rh5 {[%clk 0:01:08]} 27. Qxh3 {[%clk 0:01:00]}  Rxh3 {[%clk 0:01:08]} 28. Bxa7 {[%clk 0:00:54]}  Nc5 {[%clk 0:00:57]} 29. a5 {[%clk 0:00:49]}  Nxd3 {[%clk 0:00:54]} 30. a6 {[%clk 0:00:49]}  c5 {[%clk 0:00:44]} 31. Rf1 {[%clk 0:00:33]}  e4 {[%clk 0:00:41]} 32. Bb6 {[%clk 0:00:31]}  Bb8 {[%clk 0:00:26]} 33. Kg1 {[%clk 0:00:30]}  Rh5 {[%clk 0:00:24]} 34. Rb1 {[%clk 0:00:15]}  Re5 {[%clk 0:00:23]} 35. Bc7 {[%clk 0:00:14]}  Bxc7 {[%clk 0:00:20]} 36. Rb7 {[%clk 0:00:11]}  Re8 {[%clk 0:00:18]} 37. Rxc7 {[%clk 0:00:11]}  Ra8 {[%clk 0:00:18]} 38. a7 {[%clk 0:00:11]}  Ne5 {[%clk 0:00:16]} 39. Kf1 {[%clk 0:00:11]}  Nxc4 {[%clk 0:00:16]} 40. Rb7 {[%clk 0:00:11]}  Kh7 {[%clk 0:00:15]} 41. Ke1 {[%clk 0:00:09]}  Nb6 {[%clk 0:00:15]} 42. Rxb6 {[%clk 0:00:09]}  Rxa7 {[%clk 0:00:16]} 43. Rb2 {[%clk 0:00:05]}  Ra1+ {[%clk 0:00:15]} 44. Kd2 {[%clk 0:00:05]}  Rh1 {[%clk 0:00:15]} 45. Ke3 {[%clk 0:00:06]}  Rxh2 {[%clk 0:00:15]} 46. Kxe4 {[%clk 0:00:06]}  Rh1 {[%clk 0:00:15]} 47. Kxf3 {[%clk 0:00:06]}  Rc1 {[%clk 0:00:14]} 48. Rb3 {[%clk 0:00:06]}  c4 {[%clk 0:00:14]} 49. Ra3 {[%clk 0:00:06]}  Rd1 {[%clk 0:00:14]} 50. Ke2 {[%clk 0:00:04]}  Rd3 {[%clk 0:00:14]} 51. f3 {[%clk 0:00:01]}  Kg6 {[%clk 0:00:14]} 52. Kf2 {[%clk 0:00:01]}  Kf5 {[%clk 0:00:14]} 53. Ke2 {[%clk 0:00:01]}  g5 {[%clk 0:00:14]} 54. Kf2 {[%clk 0:00:02]}  h5 {[%clk 0:00:14]} 55. Kg2 {[%clk 0:00:01]}  h4 {[%clk 0:00:13]} 56. gxh4 {[%clk 0:00:01]}  gxh4 {[%clk 0:00:13]} 57. Kh3 {[%clk 0:00:01]}  Kf4 {[%clk 0:00:14]} 58. Ra4 {[%clk 0:00:01]}  Rxc3 {[%clk 0:00:13]} 59. Kxh4 {[%clk 0:00:02]}  Kxf3 {[%clk 0:00:14]} 60. Kg5 {[%clk 0:00:02]}  Ke4 {[%clk 0:00:14]} 61. Kg4 {[%clk 0:00:02]}  Kd4 {[%clk 0:00:14]} 62. Kf4 {[%clk 0:00:02]}  Rc1 {[%clk 0:00:14]} 63. Kf3 {[%clk 0:00:03]}  Kd3 {[%clk 0:00:14]} 64. Ra8 {[%clk 0:00:02]}  c3 {[%clk 0:00:14]} 65. Rd8+ {[%clk 0:00:02]}  Kc2 {[%clk 0:00:14]} 66. Ke2 {[%clk 0:00:03]}  Rh1 {[%clk 0:00:13]} 67. Rb8 {[%clk 0:00:03]}  Rh7 {[%clk 0:00:13]} 68. Ke1 {[%clk 0:00:02]}  Re7+ {[%clk 0:00:13]} 69. Kf2 {[%clk 0:00:02]}  Kd1 {[%clk 0:00:12]} 70. Rd8+ {[%clk 0:00:02]}  Kc1 {[%clk 0:00:12]} 71. Rc8 {[%clk 0:00:02]}  c2 {[%clk 0:00:13]} 72. Rb8 {[%clk 0:00:03]}  Re5 {[%clk 0:00:12]} 73. Kf1 {[%clk 0:00:02]}  Kd2 {[%clk 0:00:12]} 74. Rd8+ {[%clk 0:00:02]}  Kc3 {[%clk 0:00:13]} 75. Rc8+ {[%clk 0:00:03]}  Kd3 {[%clk 0:00:13]} 76. Rd8+ {[%clk 0:00:02]}  Kc4 {[%clk 0:00:13]} 77. Rc8+ {[%clk 0:00:03]}  Rc5 {[%clk 0:00:13]} 0-1


[Site "https://www.chess.com"]